bitfinex-derivatives/quotes_SOLF0:USTF0_20260211
["timestamp","ask_amount","ask_price","bid_price","bid_amount"]
[1770783246522,3.86177796,82.946,82.901,4.02012503]
[1770783249022,3.86177796,82.946,82.9,2.78426241]
[1770783249323,3.86177796,82.944,82.9,2.78426241]
[1770783250121,14.71967796,82.943,82.9,2.78426241]
[1770783250328,2.78426241,82.94,82.891,4.02012503]
[1770783250620,3.86177796,82.943,82.9,2.78426241]
[1770783251726,3.86177796,82.943,82.9,6.80438744]
[1770783252114,3.86177796,82.943,82.901,4.02012503]
[1770783252326,3.86177796,82.957,82.911,4.02012503]
[1770783254823,3.86177796,82.939,82.899,4.02012503]
[1770783255028,3.86177796,82.939,82.89,2.78426241]
[1770783257928,3.86177796,82.939,82.891,4.02012503]
[1770783258828,3.86177796,82.939,82.892,10.8645]
[1770783260633,3.86177796,82.939,82.893,3.86915166]
[1770783262432,3.86177796,82.939,82.9,2.78426241]
[1770783263136,3.7107364,82.951,82.91,2.78426241]
[1770783263325,3.7107364,82.939,82.89,2.78426241]
[1770783264126,3.7107364,82.939,82.89,6.78367357]
[1770783264332,3.7107364,82.939,82.89,17.64837357]
[1770783264532,3.7107364,82.939,82.891,3.99941116]
[1770783268438,3.99714389,82.929,82.881,10.8658]
[1770783268637,3.99714389,82.929,82.882,3.99941116]
[1770783269240,3.99714389,82.929,82.89,6.79293894]
[1770783270439,3.99714389,82.929,82.891,3.99941116]
[1770783270741,3.99714389,82.942,82.901,3.99941116]
[1770783271639,6.79067167,82.94,82.901,3.99941116]
[1770783273929,3.99714389,82.939,82.901,3.99941116]
[1770783274130,3.99714389,82.939,82.891,3.99941116]
[1770783274739,3.99714389,82.929,82.881,10.8659]
[1770783276333,3.99714389,82.929,82.88,6.79293894]
[1770783276841,3.99714389,82.929,82.881,3.99941116]
[1770783277844,3.99714389,82.929,82.851,31.87439301]
[1770783277845,3.99714389,82.889,82.833,14.87161116]
[1770783278146,3.99714389,82.879,82.834,3.99941116]
[1770783278446,3.99714389,82.902,82.841,3.99941116]
[1770783278643,3.99714389,82.915,82.88,2.79352778]
[1770783282643,3.99714389,82.915,82.87,2.79352778]
[1770783283146,3.99714389,82.904,82.86,2.79352778]
[1770783283746,2.79352778,82.9,82.849,10.87]
[1770783284049,3.99714389,82.889,82.85,2.79352778]
[1770783284741,3.99714389,82.889,82.85,6.79293894]
[1770783284942,3.99714389,82.889,82.851,3.99941116]
[1770783285149,2.79352778,82.9,82.851,3.99941116]
[1770783285346,3.99714389,82.902,82.861,3.99941116]
[1770783286754,2.79352778,82.9,82.861,3.99941116]
[1770783288145,3.99714389,82.902,82.861,3.99941116]
[1770783288941,2.79352778,82.9,82.861,3.99941116]
[1770783290347,3.79314265,82.899,82.861,3.99941116]
[1770783291450,2.79352778,82.9,82.861,3.99941116]
[1770783292958,2.79352778,82.92,82.871,4.02407142]
[1770783293455,2.79352778,82.92,82.874,4.02407142]
[1770783293847,3.79314265,82.923,82.881,4.02407142]
[1770783294354,3.79314265,82.942,82.91,2.79352778]
[1770783294555,3.79314265,82.942,82.901,4.02407142]
[1770783294757,3.79314265,82.939,82.847,4.02407142]
[1770783294957,6.58667043,82.92,82.871,4.02407142]
[1770783295253,3.79314265,82.919,82.871,4.02407142]
[1770783295454,3.79314265,82.919,82.881,4.02407142]
[1770783298962,3.79314265,82.933,82.89,6.8175992]
[1770783299161,3.79314265,82.933,82.891,4.02407142]
[1770783299558,3.79314265,82.919,82.87,2.79313987]
[1770783299759,2.79313987,82.93,82.881,4.02407142]
[1770783300360,36.14,82.967,82.838,36.14]
[1770783300361,3.79314265,82.949,82.9,6.81721129]
[1770783300867,3.79314265,82.939,82.89,2.79313987]
[1770783301362,3.79314265,82.919,82.87,2.79313987]
[1770783301566,3.79314265,82.919,82.868,4.02407142]
[1770783301863,3.79314265,82.909,82.868,4.02407142]
[1770783302060,3.79314265,82.909,82.86,2.79313987]
[1770783302260,99.18,82.937,82.856,4.02407142]
[1770783302261,3.79314265,82.899,82.856,4.02407142]
[1770783302761,3.79314265,82.914,82.87,2.79313987]
[1770783302959,3.79314265,82.914,82.87,6.81721129]
[1770783303155,2.79313987,82.91,82.87,4.02407142]
[1770783303360,3.79314265,82.914,82.87,6.81721129]
[1770783303666,3.79314265,82.919,82.87,2.79313987]
[1770783304065,3.79314265,82.899,82.85,2.79313987]
[1770783304262,3.79314265,82.899,82.86,2.79313987]
[1770783306271,3.79314265,82.899,82.85,6.81721129]
[1770783306975,3.79314265,82.879,82.83,2.79313987]
[1770783307973,3.79314265,82.879,82.84,2.79313987]
[1770783308173,3.79314265,82.879,82.831,4.02407142]
[1770783308373,10.8649,82.889,82.841,4.02407142]
[1770783308678,2.79313987,82.88,82.841,4.02407142]
[1770783308865,3.79314265,82.888,82.841,4.02407142]
[1770783309066,2.79313987,82.88,82.83,2.79313987]
[1770783309277,3.79314265,82.879,82.83,2.79313987]
[1770783309669,3.79314265,82.879,82.83,6.81721129]
[1770783309870,2.79313987,82.89,82.841,4.02407142]
[1770783310379,3.79314265,82.889,82.841,4.02407142]
[1770783310571,3.79314265,82.889,82.85,2.79313987]
[1770783310765,3.79314265,82.902,82.861,4.02407142]
[1770783311171,13.65533987,82.91,82.861,4.02407142]
[1770783311477,3.79314265,82.909,82.861,4.02407142]
[1770783312074,2.79313987,82.9,82.861,4.02407142]
[1770783312678,3.79314265,82.899,82.85,2.79313987]
[1770783312877,3.79314265,82.899,82.85,6.81721129]
[1770783313177,3.79314265,82.899,82.851,4.02407142]
[1770783316670,2.79313987,82.91,82.861,4.02407142]
[1770783317383,3.79314265,82.907,82.852,10.8697]
[1770783317571,3.79314265,82.899,82.852,10.8697]
[1770783317774,3.79314265,82.899,82.853,4.02407142]
[1770783319382,3.79314265,82.899,82.86,2.79313987]
[1770783320375,3.79314265,82.899,82.86,6.51723006]
[1770783321580,3.79314265,82.899,82.86,3.72409019]
[1770783322084,3.79314265,82.899,82.85,2.79313987]
[1770783322884,3.79314265,82.899,82.851,3.72409019]
[1770783326083,3.79314265,82.899,82.852,3.77404136]
[1770783326292,2.79313987,82.91,82.861,3.77404136]
[1770783326890,4.02254332,82.915,82.87,2.79313987]
[1770783327091,4.02254332,82.913,82.861,3.77404136]
[1770783327293,4.02254332,82.911,82.861,3.77404136]
[1770783327592,13.23346679,82.91,82.861,3.77404136]
[1770783327886,4.02254332,82.922,82.871,3.77404136]
[1770783328092,4.02254332,82.919,82.871,3.77404136]
[1770783328297,4.02254332,82.917,82.871,3.77404136]
[1770783330499,4.02254332,82.929,82.881,3.77404136]
[1770783330697,4.02254332,82.927,82.881,3.77404136]
[1770783330892,2.79340343,82.94,82.891,3.77404136]
[1770783331087,2.79340343,82.93,82.88,2.79340343]
[1770783331290,4.02254332,82.928,82.88,2.79340343]
[1770783331892,4.02254332,82.928,82.876,3.77404136]
[1770783332692,2.79340343,82.92,82.876,3.77404136]
[1770783332897,4.02254332,82.919,82.87,13.66070343]
[1770783333691,4.02254332,82.909,82.864,3.77404136]
[1770783334295,4.02254332,82.909,82.87,2.79340343]
[1770783335293,10.8612,82.918,82.87,2.79340343]
[1770783335294,2.79340343,82.92,82.871,3.77404136]
[1770783336000,4.02254332,82.919,82.88,2.79340343]
[1770783336198,4.02254332,82.91,82.861,3.77404136]
[1770783336594,4.02254332,82.91,82.871,3.77404136]
[1770783340191,11.21350279,82.939,82.871,3.77404136]
[1770783340192,4.02254332,82.924,82.871,3.77404136]
[1770783340500,4.02254332,82.922,82.871,3.77404136]
[1770783340700,4.02254332,82.92,82.871,3.77404136]
[1770783340902,4.02254332,82.915,82.87,2.79340343]
[1770783341103,4.02254332,82.915,82.861,14.64254136]
[1770783341404,4.02254332,82.915,82.862,3.77404136]
[1770783343408,36.14,82.946,82.862,3.77404136]
[1770783343409,4.02254332,82.909,82.862,3.77404136]
[1770783349411,4.02254332,82.937,82.9,1.79343981]
[1770783349613,4.02254332,82.929,82.887,3.77404136]
[1770783349816,4.02254332,82.927,82.887,3.77404136]
[1770783350813,4.02254332,82.927,82.89,2.79340343]
[1770783351212,3.69738281,82.918,82.88,2.79340343]
[1770783351409,3.69738281,82.918,82.87,2.79340343]
[1770783351719,3.69738281,82.918,82.871,4.01023567]
[1770783351918,3.69738281,82.918,82.881,4.01023567]
[1770783354619,3.69738281,82.918,82.87,2.79340343]
[1770783355220,3.69738281,82.918,82.87,6.8036391]
[1770783355417,3.69738281,82.918,82.871,4.01023567]
[1770783356816,3.69738281,82.918,82.88,2.79340343]
[1770783357019,3.69738281,82.918,82.881,4.01023567]
[1770783360213,3.69738281,82.93,82.89,6.8036391]
[1770783360420,3.69738281,82.942,82.901,4.01023567]
[1770783360617,3.69738281,82.942,82.833,169.123]
[1770783360618,3.69738281,82.955,82.91,6.8036391]
[1770783360823,3.69738281,82.968,82.921,4.01023567]
[1770783361128,12.9238577,82.967,82.93,2.79340343]
[1770783361317,3.69738281,82.965,82.921,4.01023567]
[1770783361514,3.69738281,82.965,82.93,2.79340343]
[1770783361718,3.69738281,82.959,82.894,4.01023567]
[1770783361914,2.79340343,82.94,82.894,4.01023567]
[1770783362120,3.69738281,82.939,82.894,4.01023567]
[1770783362825,3.69738281,82.939,82.9,6.8036391]
[1770783363020,2.79340343,82.95,82.901,4.01023567]
[1770783363217,3.69738281,82.952,82.91,6.8036391]
[1770783363720,3.69738281,82.952,82.911,4.01023567]
[1770783363922,3.69738281,82.939,82.849,4.01023567]
[1770783364228,3.69738281,82.929,82.88,2.79340343]
[1770783364428,2.79340343,82.92,82.879,4.01023567]
[1770783364624,3.69738281,82.919,82.87,2.79340343]
[1770783364925,3.69738281,82.909,82.861,4.01023567]
[1770783365121,3.69738281,82.908,82.861,4.01023567]
[1770783366320,3.69738281,82.921,82.88,2.79340343]
[1770783366525,10.8596,82.93,82.881,4.01023567]
[1770783366526,13.65300343,82.93,82.881,4.01023567]
[1770783366927,3.69738281,82.929,82.89,2.79340343]
[1770783369028,3.69738281,82.929,82.881,4.01023567]
[1770783369328,3.69738281,82.929,82.89,2.79340343]
[1770783369726,3.69738281,82.945,82.9,2.79340343]
[1770783369932,12.90299946,82.944,82.9,2.79340343]
[1770783370128,9.20561665,82.943,82.9,2.79340343]
[1770783370430,3.69738281,82.944,82.9,2.79340343]
[1770783370630,3.69738281,82.944,82.891,4.01023567]
[1770783370829,6.49078624,82.94,82.891,4.01023567]
[1770783371026,3.69738281,82.939,82.891,4.01023567]
[1770783371726,3.69738281,82.929,82.88,2.79340343]
[1770783372526,132.4,82.957,82.816,176.0]
[1770783372527,3.69738281,82.919,82.87,2.79340343]
[1770783372732,3.69738281,82.919,82.867,4.01023567]
[1770783373121,3.69738281,82.919,82.87,2.79340343]
[1770783373525,3.69738281,82.935,82.89,2.79340343]
[1770783373726,3.69738281,82.929,82.881,4.01023567]
[1770783373928,3.69738281,82.919,82.87,2.79340343]
[1770783375128,9.14535839,82.918,82.87,2.79340343]
[1770783375332,3.69738281,82.917,82.87,2.79340343]
[1770783376441,3.69738281,82.915,82.87,2.79340343]
[1770783377836,3.69738281,82.915,82.87,6.8036391]
[1770783378029,3.69738281,82.915,82.871,4.01023567]
[1770783378228,6.49078624,82.93,82.881,4.01023567]
[1770783378632,3.69738281,82.93,82.881,4.01023567]
[1770783378834,3.69738281,82.949,82.891,4.01023567]
[1770783379039,3.69738281,82.947,82.9,2.79340343]
[1770783379239,12.83074894,82.946,82.9,2.79340343]
[1770783379440,9.13336613,82.945,82.9,2.79340343]
[1770783379642,3.69738281,82.946,82.901,4.01023567]
[1770783380539,3.69738281,82.946,82.91,2.79340343]
[1770783382738,3.69738281,82.946,82.844,36.14]
[1770783382739,3.94835061,82.959,82.92,2.79340343]
[1770783382942,6.74175404,82.97,82.921,4.03294492]
[1770783383144,3.94835061,82.969,82.921,4.03294492]
[1770783384045,2.79340343,82.98,82.931,3.78054615]
[1770783384245,3.762869,82.959,82.917,3.78054615]
[1770783384443,3.762869,82.959,82.91,2.79340343]
[1770783384741,3.762869,82.959,82.92,2.79340343]
[1770783385344,3.762869,82.965,82.921,3.78054615]
[1770783386336,3.762869,82.965,82.92,2.79340343]
[1770783387244,3.762869,82.965,82.92,6.57394958]
[1770783387439,3.762869,82.965,82.93,2.79340343]
[1770783388042,10.8535,82.976,82.931,3.78054615]
[1770783388443,3.762869,82.992,82.96,2.79340343]
[1770783389737,3.762869,83.006,82.96,2.79340343]
[1770783390348,3.762869,83.006,82.97,2.79340343]
[1770783392845,3.762869,83.006,82.97,2.78797679]
[1770783393346,3.762869,83.02,82.98,2.78797679]
[1770783395847,3.762869,82.999,82.943,3.78054615]
[1770783396039,3.762869,82.999,82.95,2.78797679]
[1770783396646,3.762869,82.989,82.943,3.78054615]
[1770783397347,3.762869,82.989,82.95,2.78797679]
[1770783398355,3.762869,82.987,82.94,2.78797679]
[1770783399251,2.78797679,82.98,82.93,2.78797679]
[1770783399747,6.55084579,82.98,82.93,6.56852294]
[1770783400147,6.55084579,82.98,82.931,3.78054615]
[1770783400351,6.55084579,82.98,82.94,2.78797679]
[1770783401053,3.762869,82.979,82.876,3.78054615]
[1770783401351,3.762869,82.929,82.88,2.78797679]
[1770783401549,3.762869,82.929,82.89,2.78797679]
[1770783402846,10.86,82.927,82.881,3.78054615]
[1770783404749,3.762869,82.924,82.851,3.78054615]
[1770783404949,3.762869,82.909,82.851,3.78054615]
[1770783405755,3.762869,82.9,82.833,3.78054615]
[1770783406447,3.762869,82.881,82.815,3.78054615]
[1770783407055,3.762869,82.879,82.815,3.78054615]
[1770783407254,8.3136307,82.9,82.796,10.877]
[1770783407255,3.762869,82.869,82.802,3.78054615]
[1770783408157,3.762869,82.855,82.802,3.78054615]
[1770783409158,3.762869,82.868,82.802,3.78054615]
[1770783409548,3.762869,82.865,82.802,3.78054615]
[1770783410451,3.8855503,82.861,82.802,3.78054615]
[1770783411459,3.8855503,82.861,82.805,10.8758]
[1770783412563,3.8855503,82.861,82.802,3.78054615]
[1770783417262,3.8855503,82.859,82.802,3.78054615]
[1770783420360,3.8855503,82.859,82.814,3.77493665]
[1770783420566,10.8672,82.872,82.823,3.77493665]
[1770783420763,3.8855503,82.888,82.823,3.77493665]
[1770783420967,3.8855503,82.879,82.81,3.77493665]
[1770783421169,3.8855503,82.864,82.81,3.77493665]
[1770783421770,96.3,82.89,82.79,8.32940348]
[1770783421771,3.8855503,82.859,82.822,8.6e-05]
[1770783422866,3.8855503,82.85,82.822,8.6e-05]
[1770783424167,8.32940348,82.86,82.822,8.6e-05]
[1770783424168,3.8855503,82.847,82.822,8.6e-05]
[1770783424377,3.8855503,82.839,82.766,3.77493665]
[1770783424573,169.0397,82.875,82.701,21.7791]
[1770783424574,3.8855503,82.819,82.771,6.424e-05]
[1770783424779,3.8855503,82.797,82.737,3.77493665]
[1770783424976,2.1,82.766,82.737,3.77493665]
[1770783425573,5.9855503,82.766,82.717,3.77493665]
[1770783425975,3.8855503,82.765,82.717,3.77493665]
[1770783426176,2.1,82.766,82.717,3.77493665]
[1770783426778,2.1,82.766,82.697,10.8901]
[1770783426779,3.8855503,82.765,82.697,3.77493665]
[1770783427170,10.8815,82.763,82.697,3.77493665]
[1770783427372,14.7670503,82.763,82.697,3.77493665]
[1770783427570,3.8855503,82.762,82.697,3.77493665]
[1770783427976,3.8855503,82.748,82.681,3.77493665]
[1770783428277,3.8855503,82.739,82.661,3.77493665]
[1770783428584,3.8855503,82.739,82.616,5.58005454]
[1770783428585,3.8855503,82.739,82.681,3.77493665]
[1770783429378,2.1,82.766,82.681,3.77493665]
[1770783429379,3.8855503,82.761,82.681,3.77493665]
[1770783429590,3.8855503,82.761,82.701,3.77493665]
[1770783429880,2.1,82.766,82.701,3.77493665]
[1770783430279,2.1,82.766,82.721,3.77493665]
[1770783430788,3.8855503,82.788,82.721,3.77493665]
[1770783431282,3.8855503,82.804,82.741,3.77493665]
[1770783432484,10.8742,82.819,82.751,3.77493665]
[1770783432676,3.8855503,82.82,82.751,3.77493665]
[1770783433282,3.8855503,82.82,82.75,8.32940348]
[1770783433283,3.8855503,82.82,82.754,3.77493665]
[1770783433676,3.8855503,82.844,82.771,3.77493665]
[1770783433880,3.8855503,82.844,82.773,3.77493665]
[1770783435176,3.8855503,82.844,82.791,3.77493665]
[1770783435382,96.38,82.853,82.791,3.77493665]
[1770783435592,3.8855503,82.86,82.791,3.77493665]
[1770783437486,3.8855503,82.86,82.793,3.77493665]
[1770783437687,8.32940348,82.87,82.768,96.38]
[1770783437688,3.8855503,82.882,82.811,3.77493665]
[1770783439584,3.8855503,82.882,82.813,3.77493665]
[1770783439990,10.864,82.896,82.831,3.77493665]
[1770783440184,3.70257643,82.895,82.831,3.77493665]
[1770783440882,3.70257643,82.869,82.8,8.32940348]
[1770783441086,3.70257643,82.869,82.796,4.01192956]
[1770783441884,3.70257643,82.861,82.796,4.01192956]
[1770783442090,3.70257643,82.861,82.769,96.36]
[1770783442091,3.70257643,82.861,82.801,4.01192956]
[1770783442487,3.70257643,82.88,82.821,4.01192956]
[1770783443486,3.70257643,82.88,82.82,8.32940348]
[1770783443686,3.70257643,82.88,82.8,8.32940348]
[1770783443687,3.70257643,82.88,82.81,4.01192956]
[1770783443883,3.87648338,82.879,82.81,4.01192956]
[1770783444686,3.87648338,82.874,82.794,3.89821067]
[1770783444993,17.3353217,82.9,82.794,3.89821067]
[1770783444994,3.87648338,82.859,82.794,3.89821067]
[1770783445380,3.87648338,82.879,82.794,3.89821067]
[1770783445586,3.87648338,82.879,82.811,3.89821067]
[1770783446196,10.8645,82.892,82.831,3.89821067]
[1770783446392,14.74098338,82.892,82.831,3.89821067]
[1770783446693,3.87648338,82.891,82.831,3.89821067]
[1770783446892,3.87648338,82.873,82.81,8.32940348]
[1770783447093,3.87648338,82.873,82.811,3.89821067]
[1770783447493,3.87648338,82.873,82.813,3.89821067]
[1770783447786,3.87648338,82.873,82.82,8.32940348]
[1770783448090,3.87648338,82.873,82.821,3.89821067]
[1770783448593,3.87648338,82.873,82.823,3.89821067]
[1770783450897,3.87648338,82.873,82.801,3.89821067]
[1770783451491,3.87648338,82.872,82.804,3.89821067]
[1770783452696,3.87648338,82.872,82.812,3.89821067]
[1770783452895,3.87648338,82.872,82.821,3.89821067]
[1770783454792,8.3244281,82.9,82.825,3.89821067]
[1770783454793,3.87648338,82.893,82.825,3.89821067]
[1770783455693,10.8646,82.892,82.826,10.8731]
[1770783455893,10.8646,82.892,82.827,3.89821067]
[1770783456088,9.04026251,82.917,82.841,3.89821067]
[1770783456291,3.87648338,82.916,82.857,3.89821067]
[1770783458193,3.87648338,82.916,82.86,8.3244281]
[1770783458893,3.87648338,82.916,82.86,12.22263877]
[1770783460393,3.87648338,82.916,82.861,10.8685]
[1770783462505,3.87648338,82.913,82.848,3.89821067]
[1770783464807,3.87648338,82.91,82.851,3.89821067]
[1770783467202,3.87648338,82.91,82.854,3.89821067]
[1770783468803,3.87648338,82.91,82.859,10.8687]
[1770783469409,3.87648338,82.91,82.854,3.89821067]
[1770783470206,3.87648338,82.91,82.856,3.75732642]
[1770783470606,3.87648338,82.91,82.859,10.8688]
[1770783473311,4.0369419,82.907,82.856,3.75732642]
[1770783473513,4.0369419,82.907,82.841,3.75732642]
[1770783473712,4.0369419,82.907,82.761,271.43295297]
[1770783473713,4.0369419,82.907,82.821,3.75732642]
[1770783474017,10.8636,82.899,82.83,10.8725]
[1770783474212,8.3244281,82.91,82.82,8.3244281]
[1770783474213,4.0369419,82.898,82.831,3.75732642]
[1770783475208,4.0369419,82.898,82.842,3.75732642]
[1770783475413,4.0369419,82.909,82.842,3.75732642]
[1770783476711,4.0369419,82.909,82.855,3.75732642]
[1770783478516,4.0369419,82.868,82.803,3.75732642]
[1770783479919,4.0369419,82.868,82.815,3.75732642]
[1770783480311,4.0369419,82.902,82.841,3.75732642]
[1770783480708,4.0369419,82.902,82.853,3.75732642]
[1770783482622,4.0369419,82.902,82.841,14.62842642]
[1770783483015,4.0369419,82.902,82.842,3.75732642]
[1770783483619,4.0369419,82.902,82.846,10.8705]
[1770783483916,4.0369419,82.902,82.847,3.75732642]
[1770783484115,10.8614,82.916,82.84,8.3244281]
[1770783484116,4.0369419,82.916,82.858,3.75732642]
[1770783484310,4.0369419,82.916,82.817,96.28]
[1770783484311,4.0369419,82.938,82.861,3.75732642]
[1770783484516,9.02950998,82.937,82.861,3.75732642]
[1770783484717,9.02950998,82.937,82.85,8.3244281]
[1770783484718,4.0369419,82.957,82.898,3.75732642]
[1770783485018,4.0369419,82.949,82.881,3.75732642]
[1770783485225,4.0369419,82.947,82.881,3.75732642]
[1770783485520,4.0369419,82.945,82.881,3.75732642]
[1770783485821,4.0369419,82.943,82.881,3.75732642]
[1770783486009,4.0369419,82.941,82.881,3.75732642]
[1770783486615,4.0369419,82.939,82.881,3.75732642]
[1770783490212,4.0369419,82.953,82.882,3.75732642]
[1770783490412,4.0369419,82.951,82.882,3.75732642]
[1770783490619,4.0369419,82.939,82.86,3.75732642]
[1770783490822,8.3244281,82.94,82.86,3.75732642]
[1770783490823,4.0369419,82.937,82.86,3.75732642]
[1770783491926,4.0369419,82.937,82.867,3.75732642]
[1770783492729,4.0369419,82.937,82.872,3.75732642]
[1770783494625,4.0369419,82.937,82.875,3.75732642]
[1770783495422,4.0369419,82.934,82.882,3.75732642]
[1770783495621,4.0369419,82.934,82.86,3.75732642]
[1770783496730,4.0369419,82.934,82.871,3.75732642]
[1770783497321,11.14624323,82.959,82.859,96.28]
[1770783497322,4.0369419,82.952,82.881,3.75732642]
[1770783497518,10.8563,82.955,82.881,3.75732642]
[1770783497519,4.0369419,82.95,82.881,3.75732642]
[1770783497927,4.0369419,82.95,82.897,3.75732642]
[1770783499730,4.0369419,82.95,82.899,3.75732642]
[1770783503331,4.0369419,82.95,82.898,10.8637]
[1770783503529,3.78966065,82.945,82.882,3.87887503]
[1770783504830,14.8082724,82.944,82.884,4.00590578]
[1770783505034,3.9505724,82.943,82.884,4.00590578]
[1770783505837,3.9505724,82.943,82.887,4.00590578]
[1770783507537,3.9505724,82.943,82.875,96.26]
[1770783507742,8.3244281,82.95,82.841,4.00590578]
[1770783507743,3.9505724,82.929,82.841,4.00590578]
[1770783507938,3.9505724,82.909,82.841,4.00590578]
[1770783508138,3.9505724,82.909,82.843,4.00590578]
[1770783509038,3.9505724,82.909,82.817,96.24]
[1770783509039,3.9505724,82.898,82.851,4.00590578]
[1770783509239,6.74611147,82.87,82.82,6.80144485]
[1770783509436,3.9505724,82.879,82.83,2.79553907]
[1770783509637,2.79553907,82.87,82.821,4.00590578]
[1770783510028,3.9505724,82.879,82.831,4.00590578]
[1770783510335,3.9505724,82.894,82.851,4.00590578]
[1770783510533,2.79553907,82.9,82.851,4.00590578]
[1770783510835,3.9505724,82.909,82.851,4.00590578]
[1770783511039,10.8627,82.906,82.851,4.00590578]
[1770783511732,3.9505724,82.905,82.851,4.00590578]
[1770783512042,3.9505724,82.903,82.851,4.00590578]
[1770783512540,3.9505724,82.9,82.834,4.00590578]
[1770783513538,3.9505724,82.889,82.825,10.8733]
[1770783513738,3.9505724,82.889,82.826,4.00590578]
[1770783513945,3.9505724,82.889,82.828,4.00590578]
[1770783514339,36.26,82.919,82.8,8.32304582]
[1770783514340,3.9505724,82.907,82.85,4.00590578]
[1770783514743,3.9505724,82.907,82.831,4.00590578]
[1770783515244,9.01651726,82.918,82.831,4.00590578]
[1770783515245,3.9505724,82.905,82.831,4.00590578]
[1770783515639,3.9505724,82.899,82.831,4.00590578]
[1770783515839,3.9505724,82.894,82.831,4.00590578]
[1770783517844,3.9505724,82.894,82.833,4.00590578]
[1770783518750,3.9505724,82.892,82.833,4.00590578]
[1770783519144,10.8647,82.891,82.833,4.00590578]
[1770783519347,3.9505724,82.892,82.833,4.00590578]
[1770783520747,3.9505724,82.892,82.835,4.00590578]
[1770783520950,3.9505724,82.892,82.816,4.00590578]
[1770783521347,3.9505724,82.878,82.816,4.00590578]
[1770783522851,10.8665,82.877,82.816,4.00590578]
[1770783523044,3.9505724,82.876,82.816,4.00590578]
[1770783523252,3.9505724,82.876,82.821,4.00590578]
[1770783523446,3.9505724,82.892,82.821,4.00590578]
[1770783524357,3.9505724,82.909,82.841,4.00590578]
[1770783525852,3.9505724,82.907,82.845,4.00590578]
[1770783526861,3.9505724,82.903,82.845,4.00590578]
[1770783528256,3.9505724,82.903,82.849,4.00590578]
[1770783529961,3.9505724,82.903,82.851,10.8698]
[1770783530161,3.9505724,82.903,82.851,14.96350584]
[1770783530455,3.9505724,82.903,82.852,4.09370584]
[1770783532854,2.79581939,82.9,82.852,4.09370584]
[1770783536870,3.9505724,82.903,82.852,4.09370584]
[1770783537570,12.83211901,82.917,82.856,4.09370584]
[1770783537760,12.83809278,82.932,82.856,4.09370584]
[1770783537961,3.79146326,82.932,82.871,4.09370584]
[1770783538867,3.79146326,82.932,82.875,4.09370584]
[1770783539170,11.15269547,82.963,82.875,4.09370584]
[1770783539171,3.79146326,82.946,82.875,4.09370584]
[1770783539965,96.28,82.967,82.866,96.28]
[1770783539966,10.8566,82.953,82.891,4.09370584]
[1770783540367,3.79146326,82.961,82.891,4.09370584]
[1770783541272,3.79146326,82.975,82.911,4.09370584]
[1770783541965,3.79146326,82.996,82.911,4.09370584]
[1770783542165,3.79146326,82.996,82.931,4.09370584]
[1770783544169,3.79146326,82.989,82.917,4.09370584]
[1770783545066,8.32082687,82.99,82.917,4.09370584]
[1770783545067,3.79146326,82.973,82.917,4.09370584]
[1770783545270,3.79146326,82.969,82.902,4.09370584]
[1770783546581,3.79146326,82.967,82.902,4.09370584]
[1770783546876,3.79146326,82.959,82.902,4.09370584]
[1770783547574,3.79146326,82.946,82.89,8.30883494]
[1770783547875,3.79146326,82.961,82.891,4.09370584]
[1770783548681,3.79146326,82.96,82.891,4.09370584]
[1770783549380,3.79146326,82.96,82.893,4.09370584]
[1770783549974,3.79146326,82.957,82.895,4.09370584]
[1770783550472,3.79146326,82.977,82.895,4.09370584]
[1770783551676,3.79146326,82.969,82.899,4.09370584]
[1770783552584,3.79146326,82.965,82.904,4.09370584]
[1770783553381,3.79146326,82.963,82.904,4.09370584]
[1770783554683,3.79146326,82.961,82.904,4.09370584]
[1770783556886,3.79146326,82.959,82.91,2.79186837]
[1770783557790,3.79146326,82.959,82.911,4.09370584]
[1770783562195,3.78702383,82.972,82.93,2.79186837]
[1770783563187,3.78702383,82.972,82.921,4.01629736]
[1770783563994,2.79186837,82.97,82.921,4.01629736]
[1770783564388,36.26,83.019,82.95,2.79186837]
[1770783564389,4.01982379,82.986,82.95,2.79186837]
[1770783566086,4.01982379,82.986,82.941,3.69819559]
[1770783566797,4.01982379,82.986,82.95,2.79186837]
[1770783567093,6.81169216,83.0,82.951,3.69819559]
[1770783567298,4.01982379,83.0,82.96,2.79186837]
[1770783567691,6.81169216,83.0,82.96,2.79186837]
[1770783567888,4.01982379,82.999,82.951,3.69819559]
[1770783568198,4.01982379,82.999,82.76,96.17071454]
[1770783568199,4.01982379,82.969,82.92,2.79186837]
[1770783568394,4.01982379,82.969,82.921,3.69819559]
[1770783570493,2.79186837,82.98,82.931,3.69819559]
[1770783570693,4.01982379,82.979,82.92,2.79186837]
[1770783570894,4.01982379,82.979,82.931,3.69819559]
[1770783574202,96.2,83.005,82.922,10.8605]
[1770783574203,4.01982379,82.969,82.922,10.8605]
[1770783576604,4.01982379,82.969,82.922,14.55869559]
[1770783576995,4.01982379,82.969,82.923,3.69819559]
[1770783577396,4.01982379,82.969,82.93,2.79094154]
[1770783577695,4.01982379,82.982,82.932,3.69819559]